{"text_format":"1","workbook":"xlsx","n_sheets":7,"sheets":["Cover","Input","Output","Stoffdaten","ArtikelNr.","Language","Be-Um-rechnung"],"not_rendered":{"charts":0,"images":9,"macros":1,"external_links":0,"defined_names":3,"comments":2,"pivot_tables":0},"unopened":[],"bounds":{"document_bytes":16777216,"sheet_cells":100000,"rows_first":2000,"rows_last":500,"rows_between":2000,"halvings":0,"cell_chars":16384,"cell_head_chars":4096},"cells_cut":0,"cells_raw":0,"read":"whole","date_system":"1900"}

{"sheet":"Cover","index":0,"n_rows":36,"n_cols":8,"rows_kept":36,"cut":false,"hidden":false,"merged":[[25,5,26,5]]}
[]
[]
[null,null,null,null,null,null,null,{"$f":"Input!A1","v":"Version 1.1: EK-121001-Gen4"}]
[]
[]
[]
[]
[]
[]
[]
[]
[]
[]
[]
[]
[]
[]
[]
[]
[]
[]
[]
[]
[]
[null,null,null,null,null,{"$f":"Language!D12","v":"Language choice"}]
[null,null,null,"= 1",null,2]
[]
[null,null,null,"= 2"]
[]
[null,null,null,"= 3"]
[]
[null,null,null,"= 4"]
[]
[null,null,null,"= 5"]
[]
[null,null,null,"= 6"]

{"sheet":"Input","index":1,"n_rows":34,"n_cols":10,"rows_kept":34,"cut":false,"hidden":false,"merged":[[14,0,14,1],[3,2,3,6]]}
["Version 1.1: EK-121001-Gen4"]
[]
[]
[null,null,{"$f":"Language!D13","v":"!!! Please enter only one pressure value !!!"}]
[null,null,{"$f":"Language!D6","v":"Compressor discharge pressure"},null,null,{"$f":"Language!D7","v":"Minimum inlet pressure"}]
[null,null,7.5,null,null,{"$f":"C6-0.5","v":7}]
[null,null,{"$f":"IF('Be-Um-rechnung'!$A$20=1,IF('Be-Um-rechnung'!$A$20=2,Language!$D$31,IF(Input!C6<4.5,Language!$D$31,IF(Input!C6>10.5,Language!$D$31,\" \"))),IF(Input!C6<65,Language!$D$31,IF(Input!C6>152,Language!$D$31,\" \")))","v":" "},null,null,{"$f":"IF('Be-Um-rechnung'!$A$20=1,IF('Be-Um-rechnung'!$A$20=2,Language!$D$33,IF(Input!F6<4,Language!$D$33,IF(Input!F6>10,Language!$D$33,\" \"))),IF(Input!F6<58,Language!$D$33,IF(Input!F6>145,Language!$D$33,\" \")))","v":" "}]
[]
[]
[]
[]
[]
[]
[]
[{"$f":"Language!D5","v":"Compressed air flow rate \nat 20°C and 1 bar a"}]
[1000]
[{"$f":"IF('Be-Um-rechnung'!C9>Stoffdaten!O29,Language!D11,\" \")","v":" "}]
[]
[]
[]
[]
[]
[]
[]
[null,null,null,null,null,{"$f":"Language!D8","v":"Maximum inlet temperature"},null,null,{"$f":"Language!D9","v":"Outlet pressure dewpoint"}]
[null,{"$f":"Language!D4","v":"Ambient temperature"},null,null,null,35,null,null,"-70°C"]
[null,25,null,null,null,{"$f":"IF('Be-Um-rechnung'!$A$14=1,IF('Be-Um-rechnung'!$A$14=2,Language!$D$10,IF(Input!F26<25,Language!$D$10,IF(Input!F26>40,Language!$D$10,\" \"))),IF(Input!F26<77,Language!$D$10,IF(Input!F26>104,Language!$D$10,\" \")))","v":" "},null,null,{"$f":"IF('Be-Um-rechnung'!J7=0,Language!D36,IF('Be-Um-rechnung'!J6=0,Language!D11,\" \"))","v":" "}]
[null,{"$f":"IF('Be-Um-rechnung'!$A$47=1,IF('Be-Um-rechnung'!$A$47=2,Language!$D$32,IF(Input!B27<1.5,Language!$D$32,IF(Input!B27>40,Language!$D$32,\" \"))),IF(Input!B27<35,Language!$D$32,IF(Input!B27>104,Language!$D$32,\" \")))","v":" "},null,null,null,null,null,{"$f":"'Be-Um-rechnung'!J10","v":1005},{"$f":"'Be-Um-rechnung'!J10","v":1005},{"$f":"'Be-Um-rechnung'!J10","v":1005}]
[null,{"$f":"IF('Be-Um-rechnung'!$A$47=1,IF('Be-Um-rechnung'!$A$47=2,Language!$D$40,IF(Input!B27<15,Language!$D$40,\" \")),IF(Input!B27<59,Language!$D$40,\" \"))","v":" "},null,null,null,null,null,{"$f":"'Be-Um-rechnung'!J10","v":1005},{"$f":"'Be-Um-rechnung'!J10","v":1005},{"$f":"'Be-Um-rechnung'!J10","v":1005}]
[null,"&",null,null,null,null,null,{"$f":"'Be-Um-rechnung'!J10","v":1005},{"$f":"'Be-Um-rechnung'!J10","v":1005},{"$f":"'Be-Um-rechnung'!J10","v":1005}]
[null,{"$f":"Language!D39","v":"Relative humidity"}]
["max.",{"$f":"'Be-Um-rechnung'!I50","v":70},"%",null,null,null,{"$f":"Language!D34","v":"Out of standard range! Check the inputs!"}]
[null,{"$f":"IF(B32>'Be-Um-rechnung'!I50,Language!D41,\" \")","v":" "},null,null,null,null,{"$f":"Language!D11","v":"Dryer must be sized by Parker!"}]
[null,null,null,null,null,null,{"$f":"Language!D35","v":"Inputs are OK! GO!"}]

{"sheet":"Output","index":2,"n_rows":34,"n_cols":5,"rows_kept":34,"cut":false,"hidden":false,"merged":[[27,2,27,3],[26,2,26,3],[0,0,0,4],[22,2,22,3],[23,2,23,3],[24,2,24,3],[13,2,13,3],[17,2,17,3],[18,2,18,3],[11,2,11,3],[15,2,15,3],[14,2,14,3],[19,2,19,3],[20,2,20,3]]}
[{"$f":"Language!D14","v":"Dryer in accordance with standard specification"}]
[]
["WVM",{"$f":"IF(C5=ArtikelNr.!B3,Stoffdaten!P2,\"#NV\")","v":120},{"$f":"Language!D17","v":"With dew-point dependant-switching \n(variable cycle)"},{"$f":"Language!D18","v":"with insulation"}]
[]
[{"$f":"Language!D20","v":"Order Number/Catalogue Number"},null,{"$f":"IF(OR('Be-Um-rechnung'!C4<=Stoffdaten!Z2,'Be-Um-rechnung'!J6=0),ArtikelNr.!B3, Language!D11)","v":"W120/10VM4-F400CT"},{"$f":"IF(AND('Be-Um-rechnung'!C4<=Stoffdaten!Z2,'Be-Um-rechnung'!J6=1),ArtikelNr.!C3,Language!D11)","v":"W120/10VM4-F400CT/I"}]
[]
[{"$f":"Language!D5","v":"Compressed air flow rate \nat 20°C and 1 bar a"},null,{"$f":"'Be-Um-rechnung'!B29","v":1000},{"$f":"'Be-Um-rechnung'!B29","v":1000},{"$f":"'Be-Um-rechnung'!C29","v":"m³/h"}]
[{"$f":"Input!F5","v":"Minimum inlet pressure"},null,{"$f":"'Be-Um-rechnung'!B20","v":7},{"$f":"'Be-Um-rechnung'!B20","v":7},{"$f":"'Be-Um-rechnung'!C20","v":"bar g"}]
[{"$f":"Input!F25","v":"Maximum inlet temperature"},null,{"$f":"'Be-Um-rechnung'!B14","v":35},{"$f":"'Be-Um-rechnung'!B14","v":35},{"$f":"'Be-Um-rechnung'!C14","v":"°C"}]
[{"$f":"Language!D39","v":"Relative humidity"},null,100,100,"%"]
[{"$f":"Input!I25","v":"Outlet pressure dewpoint"},null,{"$f":"'Be-Um-rechnung'!B39","v":"-25"},{"$f":"'Be-Um-rechnung'!B39","v":"-25"},{"$f":"'Be-Um-rechnung'!D39","v":"°C"}]
[{"$f":"Language!D42","v":"Outlet temperature    app."},null,{"$f":"'Be-Um-rechnung'!B53","v":48.02406645707498},null,{"$f":"'Be-Um-rechnung'!C14","v":"°C"}]
[]
[{"$f":"Language!D19 & \" (1*)\"","v":"volume flow rate of blower (1*)"},null,{"$f":"Stoffdaten!T2","v":300},null,{"$f":"'Be-Um-rechnung'!C29","v":"m³/h"}]
[{"$f":"Language!D4","v":"Ambient temperature"},null,{"$f":"'Be-Um-rechnung'!F47","v":25},null,{"$f":"'Be-Um-rechnung'!C47","v":"°C"}]
[{"$f":"Language!D39","v":"Relative humidity"},null,{"$f":"'Be-Um-rechnung'!I50","v":70},null,"%"]
[]
[{"$f":"Language!D21  & \"   (2*)\"","v":"power   (2*)"},null,{"$f":"Stoffdaten!S2","v":8},null,"kWh/h"]
[{"$f":"Language!D22","v":"installed power"},null,{"$f":"Stoffdaten!U2+Stoffdaten!V2+0.2","v":13.399999999999999},null,"kW"]
[{"$f":"Language!D45","v":"nominal current : heater"},null,{"$f":"Stoffdaten!Q2","v":15.9},null,"A"]
[{"$f":"Language!D46","v":"nominal current : vacuum pump"},null,{"$f":"Stoffdaten!R2","v":5.8},null,{"$f":"E20","v":"A"}]
[]
[{"$f":"Language!D26","v":"Dimensions (AxBxC)\n(Width) x (Height) x (Depth)"},null,{"$f":"IF('Be-Um-rechnung'!C4<=Stoffdaten!Z2,Stoffdaten!W2, \"#NV\")","v":"1460 x 2690 x 1160"},null,"mm"]
[{"$f":"Language!D25","v":"Weight"},null,{"$f":"IF('Be-Um-rechnung'!C4<=Stoffdaten!Z2,Stoffdaten!X2, \"#NV\")","v":1150},null,"kg"]
[{"$f":"Language!D24","v":"Standard connections\n(EN 1092-1)"},null,{"$f":"IF('Be-Um-rechnung'!C4<=Stoffdaten!Z2,\"DN\"&Stoffdaten!Y2&\"   PN16\", \"#NV\")","v":"DN80   PN16"},null,{"$f":"Language!D29 & \" (3*) \"","v":"Alternatives possible (3*) "}]
[]
[{"$f":"Language!D27","v":"Standard Voltage"},null,"400 VAC, 50-60 Hz",null,{"$f":"Language!D29 & \" (3*) \"","v":"Alternatives possible (3*) "}]
[{"$f":"Language!D28","v":"IP - Protection classification"},null,"IP 54"]
[]
[]
[]
["(1*)",{"$f":"Language!D43","v":"Air flow rate (for the regeneration) at 100 mbar pressure drop."}]
["(2*)",{"$f":"Language!D44","v":"Power on average"}]
["(3*)",{"$f":"Language!D30","v":"Please consult Parker!"}]

{"sheet":"Stoffdaten","index":3,"n_rows":29,"n_cols":31,"rows_kept":29,"cut":false,"hidden":true,"merged":[[26,0,26,7],[5,28,5,30],[9,7,9,11],[11,7,11,11]]}
[null,null,"W-Verweis",null,"S-Verweis",null,"Korrekturfaktor",null,null,null,null,null,null,null,"V in m³/h",{"$f":"P8","v":"TYP WVM"},"Nennstrom Erhitzer","Nennstrom Gebläse","mittlere Gesamtleistung","Leistungsdaten Vakuumpumpe m³/h","mittl.Vakuumpumpenleistung [kW]","mittl.Erhitzerleistung [kW]",null,null,null,null,null,null,"Erwärmung [°C]"]
[null,"PDP=-25°C",{"$f":"HLOOKUP('Be-Um-rechnung'!C5,C13:F14,2)","v":3},null,{"$f":"VLOOKUP('Be-Um-rechnung'!C4,Stoffdaten!B15:F21,C2+1)","v":1},null,{"$f":"IF('Be-Um-rechnung'!C6<-41,Stoffdaten!E3*Stoffdaten!A27,Stoffdaten!E3)","v":1},null,null,null,null,null,null,null,{"$f":"VLOOKUP(P2,$N$10:P33,2)","v":1180.0000001000001},{"$f":"VLOOKUP('Be-Um-rechnung'!C9,$O$9:P33,2)","v":120},{"$f":"VLOOKUP(P2,N9:T29,4)","v":15.9},{"$f":"VLOOKUP(P2,N9:T29,5)","v":5.8},{"$f":"VLOOKUP(P2,N9:T29,6)","v":8},{"$f":"VLOOKUP(P2,N9:T29,7)","v":300},{"$f":"VLOOKUP(P2,N9:U29,8)","v":2.2000000000000002},{"$f":"VLOOKUP(P2,N9:V29,9)","v":11},{"$f":"VLOOKUP(P2,N9:W29,10)","v":"1460 x 2690 x 1160"},{"$f":"VLOOKUP(P2,N9:X29,11)","v":1150},{"$f":"VLOOKUP(P2,N9:Y29,12)","v":80},{"$f":"VLOOKUP(P2,N9:Z29,13)","v":10},null,null,{"$f":"(AD7*2.2)/('Be-Um-rechnung'!C4+1)","v":13.024066457074976}]
[null,null,null,null,{"$f":"IF(ISNA(E2),0,E2)","v":1}]
[null,"PDP=-40°C",{"$f":"HLOOKUP('Be-Um-rechnung'!C5,I13:L14,2)","v":3},null,{"$f":"VLOOKUP('Be-Um-rechnung'!C4,Stoffdaten!H15:L21,C2+1)","v":0.9},null,{"$f":"IF('Be-Um-rechnung'!C6<-41,Stoffdaten!E5*Stoffdaten!A27,Stoffdaten!E5)","v":0.9}]
[null,null,null,null,{"$f":"IF(ISNA(E4),0,E4)","v":0.9},null,null,null,null,null,null,null,null,null,null,null,null,null,null,null,null,null,null,null,null,null,null,null,"g","g1","g2"]
[null,null,null,null,null,null,null,null,null,null,null,null,null,null,null,null,null,null,null,null,null,null,null,null,null,null,null,null,"g/m³"]
[null,null,null,null,null,null,null,null,null,null,null,null,null,null,null,null,null,null,null,null,null,null,null,null,null,null,null,null,{"$f":"EXP(11.77-3881/(230+'Be-Um-rechnung'!$C$5))","v":5.6400174931086469E-2},{"$f":"AC7*8.03526*100/(1.0133-AC7)","v":47.360241662090822},{"$f":"AC7*2165*100/('Be-Um-rechnung'!$C$5+273.15)","v":39.625629961318261}]
[null,null,null,null,null,null,null,null,null,null,null,null,null,"Größe","V_max in m³/h","TYP WVM","Nennstrom Erhitzer","Nennstrom Gebläse","mittlere Gesamtleistung","Leistungsdaten Vakuumpumpe m³/h","mittl.Vakuumpumpenleistung [kW]","mittl.Erhitzerleistung [kW]","Dimensionen\n(AxBxC)\n[mm]","Gewicht\n[kg]","Anschluß","maximaler Druck\n[bar]"]
[null,null,null,null,null,null,null,null,null,null,null,null,null,0,0,40]
[null,null,"Trockner-Eintrittstemperatur in °F",null,null,null,null,"Trockner-Eintrittstemperatur in °F",null,null,null,null,null,40,420.00000010000002,50,6.5,2.4,3,125,0.85,4.5,"1140 x 2230 x 990",570,40,10]
["Für einen Drucktaupunkt",null,{"$f":"C13*1.8+32","v":77},86,{"$f":"E13*1.8+32","v":95},{"$f":"F13*1.8+32","v":104},"Für einen Drucktaupunkt",null,{"$f":"I13*1.8+32","v":77},{"$f":"J13*1.8+32","v":86},{"$f":"K13*1.8+32","v":95},{"$f":"L13*1.8+32","v":104},null,50,510.00000010000002,65,6.5,2.4,4,125,0.85,4.5,"1140 x 2230 x 990",600,40,10]
["von -25 °C ",null,"Trockner-Eintrittstemperatur in °C",null,null,null,"von -40 °C ","Trockner-Eintrittstemperatur in °C",null,null,null,null,null,65,640.00000009999997,85,11.6,4.9000000000000004,5,210,1.5,8,"1260 x 2300 x 1110",770,50,10]
["Mindest-Betriebsdruck",null,25,30,35,40,"Mindest-Betriebsdruck",null,25,30,35,40,null,85,850.00000009999997,120,11.6,4.9000000000000004,7,210,1.5,8,"1260 x 2300 x 1110",800,50,10]
["in bar (e) oder (g)",null,1,2,3,4,"in bar (e) oder (g)",null,1,2,3,4,null,120,1180.0000001000001,150,15.9,5.8,8,300,2.2000000000000002,11,"1460 x 2690 x 1160",1150,80,10]
[null,4,0.69,0.69,0.44,0.28000000000000003,null,4,0.66,0.66,0.4,0.26,null,150,1500.0000001000001,200,20.2,9.5,11,375,4,14,"1540 x 2700 x 1200",1300,80,10]
[null,5,0.8,0.8,0.62,0.42,null,5,0.76,0.76,0.57999999999999996,0.38,null,200,1980.0000001000001,235,26,12.9,12,550,5.5,18,"1605 x 2750 x 1405",1650,80,10]
[null,6,0.9,0.9,0.8,0.59,null,6,0.87,0.87,0.77,0.56000000000000005,null,235,2350.0000000999999,300,40.4,18.2,16,750,8.5,28,"2025 x 2870 x 1490",2000,100,10]
[null,7,1.02,1.02,1,0.7,null,7,0.93,0.93,0.9,0.68,null,300,2930.0000000999999,355,40.4,18.2,20,750,8.5,28,"2050 x 2890 x 1565",2250,100,10]
[null,8,1.06,1.06,1.05,0.79,null,8,0.98,0.98,0.95,0.72,null,355,3550.0000000999999,410,50.5,18.2,24,900,8.5,35,"2160 x 2960 x 1750",2650,100,10]
[null,9,1.17,1.17,1.1599999999999999,0.88,null,9,1.04,1.04,1.03,0.76,null,410,4100.0000000999999,475,50.5,18.2,28,900,8.5,35,"2430 x 3230 x 1710",3250,150,10]
[null,10,1.29,1.29,1.28,0.96,null,10,1.1100000000000001,1.1100000000000001,1.1100000000000001,0.85,null,475,4740.0000000999999,525,57.8,18.2,30,1150,8.5,40,"2490 x 3260 x 1710",3650,150,10]
[null,null,null,null,null,null,null,null,null,null,null,null,null,525,5250.0000000999999,620,69.3,35,32,1460,15,48,"2550 x 3265 x 1775",4050,150,10]
[null,null,null,null,null,null,null,null,null,null,null,null,null,620,6210.0000000999999,710,83.7,35,44,1460,15,58,"2570 x 3540 x 1865",4700,150,10]
[null,null,null,null,null,null,null,null,null,null,null,null,null,710,7100.0000000999999,800,99.7,35,47,1800,15,69,"2635 x 3560 x 1900",5050,150,10]
[null,null,null,null,null,null,null,null,null,null,null,null,null,800,8000.0000000999999,920,106.8,35,56,1900,15,74,"3085 x 3625 x 2110",6450,200,10]
["Für einen Drucktaupunkt von -70 °C (bei max. 35 °C Eintrittstemperatur, 100 % relative Feuchte, gasdichter Verrohrung)",null,null,null,null,null,null,null,null,null,null,null,null,920,9200.0000001000008,1080,121.2,53,63,2190,30,84,"3125 x 3645 x 2235",7500,200,10]
[1,null,null,null,null,null,null,null,null,null,null,null,null,1080,10800.000000100001,1230,137.1,53,72,2480,30,95,"3225 x 3710 x 2285",8700,200,10]
[null,null,null,null,null,null,null,null,null,null,null,null,null,1230,12300.000000100001,1450,164.5,65,84,2920,37,114,"3475 x 4050 x 2350",11500,250,10]
[null,null,null,null,null,null,null,null,null,null,null,null,null,1450,14500.000000100001,null,194.9,65,98,3440,37,135,"3500 x 4200 x 2380",13500,250,10]

{"sheet":"ArtikelNr.","index":4,"n_rows":23,"n_cols":4,"rows_kept":23,"cut":false,"hidden":true,"merged":[]}
[1,2,3,4]
[null,"Trockner-BestellNr.","Trockner-BestellNr."]
[{"$f":"VLOOKUP(Stoffdaten!P2,ArtikelNr.!A4:G19,1)","v":120},{"$f":"VLOOKUP(Stoffdaten!P2,ArtikelNr.!A4:G27,2)","v":"W120/10VM4-F400CT"},{"$f":"VLOOKUP(Stoffdaten!P2,ArtikelNr.!A4:G27,3)","v":"W120/10VM4-F400CT/I"},{"$f":"VLOOKUP(Stoffdaten!P2,ArtikelNr.!A4:G27,4)","v":0}]
[40,"W40/10VM4-F400CT","W40/10VM4-F400CT/I"]
[50,"W50/10VM4-F400CT","W50/10VM4-F400CT/I"]
[65,"W65/10VM4-F400CT","W65/10VM4-F400CT/I"]
[85,"W85/10VM4-F400CT","W85/10VM4-F400CT/I"]
[120,"W120/10VM4-F400CT","W120/10VM4-F400CT/I"]
[150,"W150/10VM4-F400CT","W150/10VM4-F400CT/I"]
[200,"W200/10VM4-F400CT","W200/10VM4-F400CT/I"]
[235,"W235/10VM4-F400CT","W235/10VM4-F400CT/I"]
[300,"W300/10VM4-F400CT","W300/10VM4-F400CT/I"]
[355,"W355/10VM4-F400CT","W355/10VM4-F400CT/I"]
[410,"W410/10VM4-F400CT","W410/10VM4-F400CT/I"]
[475,"W475/10VM4-F400CT","W475/10VM4-F400CT/I"]
[525,"W525/10VM4-F400CT","W525/10VM4-F400CT/I"]
[620,"W620/10VM4-F400CT","W620/10VM4-F400CT/I"]
[710,"W710/10VM4-F400CT","W710/10VM4-F400CT/I"]
[800,"W800/10VM4-F400CT","W800/10VM4-F400CT/I"]
[920,"W920/10VM4-F400CT","W920/10VM4-F400CT/I"]
[1080,"W1080/10VM4-F400CT","W1080/10VM4-F400CT/I"]
[1230,"W1230/10VM4-F400CT","W1230/10VM4-F400CT/I"]
[1450,"W1450/10VM4-F400CT","W1450/10VM4-F400CT/I"]

{"sheet":"Language","index":5,"n_rows":50,"n_cols":13,"rows_kept":50,"cut":false,"hidden":true,"merged":[]}
[]
[null,null,null,{"$f":"Cover!F26","v":2},"Deutsch","English","Français","Italiano","Español","Polish","…","…","…"]
[null,null,1,"Auswahl",1,2,3,4,5,6,7,8,9]
[null,null,{"$f":"C3+1","v":2},{"$f":"HLOOKUP($D$2,Language!$E$3:M50,C4)","v":"Ambient temperature"},"Umgebungstemperatur","Ambient temperature","Temp Ambiante","Temperatura ambiente","Temperatura ambiente","Temperatura otoczenia"]
[null,null,{"$f":"C4+1","v":3},{"$f":"HLOOKUP($D$2,Language!$E$3:M51,C5)","v":"Compressed air flow rate \nat 20°C and 1 bar a"},"Volumenstrom bezogen \nauf 20°C und 1 bar a","Compressed air flow rate \nat 20°C and 1 bar a","Débit air comprimé \nà 20°C et 1 bar abs","Portata riferita \na 20°C e 1 bar ass.","Caudal de aire comprimido \na 20°C y 1 bar de presión absoluta ","Strumień sprężonego powietrza odniesiony \ndo 20°C i 1 bar a"]
[null,null,{"$f":"C5+1","v":4},{"$f":"HLOOKUP($D$2,Language!$E$3:M52,C6)","v":"Compressor discharge pressure"},"Minimaler Betriebsdruck","Compressor discharge pressure","Pression sortie compresseur","Minima pressione di esercizio","Presión de descarga del compresor","Minimalne ciśnienie robocze"]
[null,null,{"$f":"C6+1","v":5},{"$f":"HLOOKUP($D$2,Language!$E$3:M53,C7)","v":"Minimum inlet pressure"},"Minimaler Eintrittsdruck","Minimum inlet pressure","Pression entrée mini","Minima pressione in ingresso","Presión mínima de entrada","Minimalne ciśnienie na wlocie"]
[null,null,6,{"$f":"HLOOKUP($D$2,Language!$E$3:M54,C8)","v":"Maximum inlet temperature"},"Maximale Eintrittstemperatur","Maximum inlet temperature","T°C entrée maxi","Massima temperatura in ingresso","Temperatura máxima de entrada","Maksymalne ciśnienie na wlocie"]
[null,null,{"$f":"C8+1","v":7},{"$f":"HLOOKUP($D$2,Language!$E$3:M55,C9)","v":"Outlet pressure dewpoint"},"Drucktaupunkt","Outlet pressure dewpoint","PDR sous pression requis","Punto di rugiada in pressione","Salida punto de rocío a presión","Ciśnieniowy punkt rosy"]
[null,null,{"$f":"C9+1","v":8},{"$f":"HLOOKUP($D$2,Language!$E$3:M56,C10)","v":"Out of range! Use 25 - 40°C or 77 - 104°F"},"Außerhalb des Bereiches von 25 - 40°C oder 77 - 104°F ","Out of range! Use 25 - 40°C or 77 - 104°F","Hors Standard ! Choisir dans la plage 25 - 40°C ou 77 - 104°F","Fuori range ! Selez. da 25 - 50 °C oppure 77 - 122 °F","Fuera de rango ! Usar 25 - 40°C o 77 - 104 °F","Poza zakresem! Wybierz od 25 do 40°C lub 77 - 104 °F"]
[null,null,{"$f":"C10+1","v":9},{"$f":"HLOOKUP($D$2,Language!$E$3:M57,C11)","v":"Dryer must be sized by Parker!"},"Trockner im Werk anfragen!","Dryer must be sized by Parker!","Le sécheur doit être déterminé par Parker!","Selezione dell'essiccatore a cura Parker!","El secador debe ser dimensionado por Parker!","Osuszacz musi być dobrany fabrycznie!"]
[null,null,10,{"$f":"HLOOKUP($D$2,Language!$E$3:M58,C12)","v":"Language choice"},"Sprachauswahl","Language choice","Choix du langage","Scelta della lingua","Selección de idioma","Wybór języka"]
[null,null,11,{"$f":"HLOOKUP($D$2,Language!$E$3:M59,C13)","v":"!!! Please enter only one pressure value !!!"},"!!! Bitte nur einen Druckwert eingeben !!!","!!! Please enter only one pressure value !!!","!!! Merci de n'entrer qu'une seule valeur de pression !!!","!!! Inserire solo un valore di pressione !!!","!!! Por favor introduzca un único valor de presión !!!","!!! Proszę wprowadzić tylko jedną wartość ciśnienia !!!"]
[null,null,12,{"$f":"HLOOKUP($D$2,Language!$E$3:M60,C14)","v":"Dryer in accordance with standard specification"},"Trockner in der Standard Ausführung","Dryer in accordance with standard specification","Sécheur conforme aux spécifications standards","Essiccatore in accordo a specifiche standard","Secador conforme a la especificación standard","Osuszacz w standardowym wykonaniu"]
[null,null,13,{"$f":"HLOOKUP($D$2,Language!$E$3:M61,C15)","v":"Dryer choice with input data"},"Trocknerwahl mit Ihren Eingabedaten","Dryer choice with input data","Sélection Sécheur en fonction des données d'entrée","Scelta essiccatore sulla base dei dati cliente","Elección del secador con los datos de entrada","Dobór osuszacza według podanych wartości wejściowych"]
[null,null,14,{"$f":"HLOOKUP($D$2,Language!$E$3:M62,C16)","v":"Standard orifice Ø"},"Ø Blende im Standard","Standard orifice Ø"," Ø orifice standard ","Orifizio calibrato standard","Orificio standard Ø","Otwór standardowy  Ø"]
[null,null,15,{"$f":"HLOOKUP($D$2,Language!$E$3:M63,C17)","v":"With dew-point dependant-switching \n(variable cycle)"},"mit Taupunkt-Steuerung ZHM 100 \n(variabler Zyklus)","With dew-point dependant-switching \n(variable cycle)","Cycles variables \n(dépendants du PDR)","Con controllo punto di rugiada \n(cicli variabili)","Con control por punto de rocío \n(Ciclo variable)","Ze sterowaniem zwrotnym \nod punktu rosy"]
[null,null,16,{"$f":"HLOOKUP($D$2,Language!$E$3:M64,C18)","v":"with insulation"},"mit Isolierung","with insulation","avec calorifuge","con isolamento",{"$f":"F18","v":"with insulation"},"z izolacją"]
[null,null,17,{"$f":"HLOOKUP($D$2,Language!$E$3:M65,C19)","v":"volume flow rate of blower"},"Fördermenge Vakuumpumpe","volume flow rate of blower","débit de la pompe à vide","portata volumetrica della soffiante",{"$f":"F19","v":"volume flow rate of blower"},"strumień powietrza pompy prózniowej"]
[null,null,18,{"$f":"HLOOKUP($D$2,Language!$E$3:M66,C20)","v":"Order Number/Catalogue Number"},"Bestellnummer/Katalognummer","Order Number/Catalogue Number","Réf catalogue","Numero ordine/Numero catalogo","Número de pedido/Número de catálogo","Numer zamówieniowy / Numer katalogowy"]
[null,null,19,{"$f":"HLOOKUP($D$2,Language!$E$3:M67,C21)","v":"power"},"mittlere Gesamtleistung","power","Puissance","potenza",{"$f":"F21","v":"power"},"zużycie energii"]
[null,null,20,{"$f":"HLOOKUP($D$2,Language!$E$3:M68,C22)","v":"installed power"},"installierte Leistung","installed power","Puissance installée","potenza installata",{"$f":"F22","v":"installed power"},"moc zainstalowana"]
[null,null,21,{"$f":"HLOOKUP($D$2,Language!$E$3:M69,C23)","v":"In addition, please order"},"Bestellen Sie dazu","In addition, please order","Ne pas oublier de commander","Prego ordinare in aggiunta","Además, por favor pedir","Dodatkowo proszę zamówić"]
[null,null,22,{"$f":"HLOOKUP($D$2,Language!$E$3:M70,C24)","v":"Standard connections\n(EN 1092-1)"},"Anschluß im Standard\n(EN 1092-1)","Standard connections\n(EN 1092-1)","Raccordements standards\n(EN 1092-1)","Connessione standard\n(EN 1092-1)","Conexiones standard\n(EN 1092-1)","Standardowe przyłącze\n(EN 1092-1)"]
[null,null,23,{"$f":"HLOOKUP($D$2,Language!$E$3:M71,C25)","v":"Weight"},"Gewicht","Weight","Poids","Peso","Peso","Waga"]
[null,null,24,{"$f":"HLOOKUP($D$2,Language!$E$3:M72,C26)","v":"Dimensions (AxBxC)\n(Width) x (Height) x (Depth)"},"Dimensionen (AxBxC)\n(Breite)x(Höhe)x(Tiefe)","Dimensions (AxBxC)\n(Width) x (Height) x (Depth)","Dimensions (AxBxC)\n(Large) x (Haut) x (Prof)","Dimensioni (AxBxC)\n(Larghezza)x(altezza)x(profondità)","Dimensiones (AxBxC)\n(Ancho) x (altura) x (Profundidad)","Wymiary (AxBxC)\n(szerokość) x (wysokość) x (głębokość)"]
[null,null,25,{"$f":"HLOOKUP($D$2,Language!$E$3:M73,C27)","v":"Standard Voltage"},"Netzspannung im Standard","Standard Voltage","Voltage Standard","Tensione standard","Tensión standard","Standardowe napięcie zasilające"]
[null,null,26,{"$f":"HLOOKUP($D$2,Language!$E$3:M74,C28)","v":"IP - Protection classification"},"Schutzklasse","IP - Protection classification","Classe IP Protection","Classe di protezione IP","Clasificación de la protección IP","Stopień ochrony IP"]
[null,null,27,{"$f":"HLOOKUP($D$2,Language!$E$3:M75,C29)","v":"Alternatives possible"},"Altenativen möglich","Alternatives possible","Variantes possibles","Possibili alternative","Alternativas posibles","Alternatywnie możliwe"]
[null,null,28,{"$f":"HLOOKUP($D$2,Language!$E$3:M76,C30)","v":"Please consult Parker!"},"Im Werk anfragen!","Please consult Parker!","Merci de bien vouloir consulter Parker!","Prego consultare la Parker!","Por favor consultar a Parker!","Prosimy o kontakt z Parkerem!"]
[null,null,29,{"$f":"HLOOKUP($D$2,Language!$E$3:M77,C31)","v":"Out of range! Use 4,5 - 10,5 bar g or 65 - 152 psi g"},"Außerhalb des Bereiches von 4,5 - 10,5 bar g oder 65 - 152 psi g","Out of range! Use 4,5 - 10,5 bar g or 65 - 152 psi g","Hors Standard ! Choisir dans la plage 4,5 - 10,5 bar eff ou 65 - 152 psi g","Fuori range ! Selez. da 4,5 - 10,5 barg oppure 65 - 152 psi g","Fuera de rango! Usar 4,5 - 10,5 barg o 65 - 152 psi g","Poza zakresem! Wybierz  od 4,5 d0 10,5 barg lub 65 d 152 psi g"]
[null,null,30,{"$f":"HLOOKUP($D$2,Language!$E$3:M78,C32)","v":"Out of range! Use 1,5 - 40°C or 77 - 104°F"},"Außerhalb des Bereiches von 1,5 - 40°C oder 77 - 104°F","Out of range! Use 1,5 - 40°C or 77 - 104°F","Hors  Standard ! Choisir dans la plage 1,5 - 40°C ou 77 - 104°F","Fuori range ! Selez. da 1,5 - 40 °C oppure 77 - 104 °F","Fuera de rango! Usar  1,5 - 40°C o 77 - 104 °F","Poza zakresem!  \nWybierz od 1,5 do 40°C lub 77 - 104 °F"]
[null,null,31,{"$f":"HLOOKUP($D$2,Language!$E$3:M79,C33)","v":"Out of range! Use 5 - 15 bar g or 73 - 217 psi g"},"Außerhalb des Bereiches von 5 - 15 bar g oder 73 - 217 psi g","Out of range! Use 5 - 15 bar g or 73 - 217 psi g","Hors  Standard ! Choisir dans la plage 5 - 15 bar eff ou 73 - 217 psi g","Fuori range ! Selez. da 5 - 15 barg oppure 73 - 217 psi g","Fuera de rango! Usar 5 - 15 barg o 73 - 217 psi g","Poza zakresem! Wybierz od 5 do 15 bar g lub 73 - 217 psi g"]
[null,null,32,{"$f":"HLOOKUP($D$2,Language!$E$3:M80,C34)","v":"Out of standard range! Check the inputs!"},"Außerhalb des Standards! Eingabewerte kontrollieren!","Out of standard range! Check the inputs!","Hors Standard ! ","Fuori intervallo! ","Fuera de rango!","Poza zakresem! Skontrolować parametry wprowadzone!"]
[null,null,33,{"$f":"HLOOKUP($D$2,Language!$E$3:M81,C35)","v":"Inputs are OK! GO!"},"Eingabewerte sind korrekt! GO!","Inputs are OK! GO!","Les données sont correctes. Allons-y !","I dati sono OK! Vai avanti!",{"$f":"F35","v":"Inputs are OK! GO!"},"Parametry wprowadzone są poprawne. Idź dalej."]
[null,null,34,{"$f":"HLOOKUP($D$2,Language!$E$3:M82,C36)","v":"No garantee for the dew point! Please reduce the inlet temperature!"},"Taupunkt kann nicht garantiert werden! Eintrittstemperatur reduzieren!","No garantee for the dew point! Please reduce the inlet temperature!","Aucune garantie pour le PdR. Réduire la T°C d'entrée","Il punto di rugiada non è garantito! Ridurre la temperatura d'ingresso!","No garantee for the dew point! Please reduce the inlet temperature!","Punkt rosy nie może być gwarantowany. Obniż temperaturę wlotową."]
[null,null,35,{"$f":"HLOOKUP($D$2,Language!$E$3:M83,C37)","v":"Alternatively ANSI B 1.20.1 (NPT-F). ???"},"Auch in ANSI B 1.20.1 (NPT-F) möglich. ???","Alternatively ANSI B 1.20.1 (NPT-F). ???","En option ANSI B 1.20.1 5 (NPT-F).","In alternativa ANSI B 1.20.1 (NPT-F).???","Alternatively ANSI B 1.20.1 (NPT-F). ???","Również możliwe ANSI B 1.20.1 (NPT-F) ???"]
[null,null,36,{"$f":"HLOOKUP($D$2,Language!$E$3:M84,C38)","v":"Alternatively 115V and 24 VDC. ???"},"Auch mit 115V und 24 V DC möglich. ???","Alternatively 115V and 24 VDC. ???","En option 115V et 24 V-DC","In alternativa 115V e  24VDC.???","Alternatively 115V and 24 VDC. ???","Również możliwe 115V i 24V DC ???"]
[null,null,37,{"$f":"HLOOKUP($D$2,Language!$E$3:M85,C39)","v":"Relative humidity"},"Relative Feuchte","Relative humidity","Humidité Relative","Umidità relativa","Relative humidity","Wilgotność względna"]
[null,null,38,{"$f":"HLOOKUP($D$2,Language!$E$3:M86,C40)","v":"Insulation is necessary!"},"Isolierung des Trockners erforderlich!","Insulation is necessary!","Calorifugeage nécessaire","E' necessario l'solamento","Insulation is necessary!","Izolacja jest konieczna!"]
[null,null,39,{"$f":"HLOOKUP($D$2,Language!$E$3:M87,C41)","v":"Relative humidity to high!"},"Relative Feuchte zu hoch!","Relative humidity to high!","Humidité Relative trop importante","Umidità relativa troppo alta!","Relative humidity to high!","Wilgotność względna za wysoka!"]
[null,null,40,{"$f":"HLOOKUP($D$2,Language!$E$3:M88,C42)","v":"Outlet temperature    app."},"Austrittstemperatur     ca.","Outlet temperature    app.","Température de sortie","Temperatura di uscita  app.","Outlet temperature    app.","Temperatura wylotowa  przybliżona"]
[null,null,41,{"$f":"HLOOKUP($D$2,Language!$E$3:M89,C43)","v":"Air flow rate (for the regeneration) at 100 mbar pressure drop."},"Volumenstrom (Regenerationsluft) bezogen auf einen Differendruck von 100 mbar.","Air flow rate (for the regeneration) at 100 mbar pressure drop.","Débit d'air (pour la régénération) à 100 mbar de Delta P","Portata (aria di rigenerazione) con 100 mbar di perdite di carico","Air flow rate (for the regeneration) at 100 mbar pressure drop.","Strumień powierza (powietrze na potrzeby regeneracji) przy założeniu 100 mbar różnicy ciśnień"]
[null,null,42,{"$f":"HLOOKUP($D$2,Language!$E$3:M90,C44)","v":"Power on average"},"Gemittelter Energiebedarf bei Taupunktsteuerung zur Orientierung (auch abhängig von Aufstell- und Lastbedingungen).","Power on average","Puissance Moyenne","Potenza media","Power on average","Uśrednione zużycie energii ze sterowaniem zwrotnym od punktu rosy, orientacyjne (zależy od ustawień i obciążenia)."]
[null,null,43,{"$f":"HLOOKUP($D$2,Language!$E$3:M91,C45)","v":"nominal current : heater"},"Nennstrom : Erhitzer","nominal current : heater","Courant Nominal : résistance chauffante","corrente nominale: riscaldatore","nominal current : heater","Prąd nominalny: grzałaka"]
[null,null,44,{"$f":"HLOOKUP($D$2,Language!$E$3:M92,C46)","v":"nominal current : vacuum pump"},"Nennstrom : Gebläse","nominal current : vacuum pump","Courant Nominal : pompe à vide","corrente nominale: pompa per vuoto","nominal current : vacuum pump","Prąd nominalny: pompa próżniowa"]
[null,null,45,{"$f":"HLOOKUP($D$2,Language!$E$3:M93,C47)","v":0}]
[null,null,46,{"$f":"HLOOKUP($D$2,Language!$E$3:M94,C48)","v":0}]
[null,null,47,{"$f":"HLOOKUP($D$2,Language!$E$3:M95,C49)","v":0}]
[null,null,48,{"$f":"HLOOKUP($D$2,Language!$E$3:M96,C50)","v":0}]

{"sheet":"Be-Um-rechnung","index":6,"n_rows":53,"n_cols":12,"rows_kept":53,"cut":false,"hidden":true,"merged":[]}
["Auslegungsprogramm K-MT 1-8, K-MT 10-95 und K-MT 120-600"]
[]
[{"$f":"Input!A15","v":"Compressed air flow rate \nat 20°C and 1 bar a"},null,{"$f":"H23","v":1000},"m³/h"]
[{"$f":"Input!F5","v":"Minimum inlet pressure"},null,{"$f":"F20","v":7},"bar g",null,null,null,null,null,{"$f":"IF(OR(C4<4,C4>10),0,1)","v":1}]
[{"$f":"Input!F25","v":"Maximum inlet temperature"},null,{"$f":"F14","v":35},"°C",null,null,null,null,null,{"$f":"IF(OR(C5<25,C5>40),0,1)","v":1}]
[{"$f":"Input!I25","v":"Outlet pressure dewpoint"},null,{"$f":"L39","v":-25},"°C",null,null,null,null,null,{"$f":"IF(C6=-70,0,1)","v":1}]
["Temperaturdifferenz",null,{"$f":"C5-C6","v":60},"°C",null,null,null,null,null,{"$f":"IF(C7>105,0,1)","v":1}]
["Korrekturfaktor K =",null,{"$f":"IF(C6=-25,Stoffdaten!G2,Stoffdaten!G4)","v":1},"-",null,null,null,null,null,{"$f":"C8","v":1}]
["Volumenstrom V_gerechnet =",null,{"$f":"IF(C8=0,-1,C3/C8)","v":1000},"m³/h",null,null,null,null,null,{"$f":"C9","v":1000}]
[null,null,null,null,null,null,null,null,null,{"$f":"IF(AND(J4=1,J5=1,J7=1,J6=1),SUM(J4:J9),0)","v":1005},"0 = not OK",">= 1 = OK"]
["Temperatur",null,"Einheit"]
[1,null,"°C"]
[2,null,"°F"]
[1,{"$f":"Input!F26","v":35},{"$f":"VLOOKUP(A14,A12:C13,3)","v":"°C"},{"$f":"IF(A14=1,Input!F26,((Input!F26-32)*5/9))","v":35},"°C",{"$f":"IF(A14=1,ROUNDUP(Input!F26*2,-1)/2,(ROUNDUP(((Input!F26-32)*5/9)*2,-1)/2))","v":35},"°C"]
[]
[]
["Druck",null,"Einheit"]
[1,null,"bar g"]
[2,null,"psi g"]
[1,{"$f":"IF('Be-Um-rechnung'!A20=1,Input!C6-0.5,Input!C6-7)","v":7},{"$f":"VLOOKUP(A20,A18:C19,3)","v":"bar g"},null,null,{"$f":"IF(A20=1,Input!F6,(ROUND(Input!F6*0.06894757,1)))","v":7},"bar g"]
[]
[]
[null,null,null,null,null,null,null,{"$f":"SUM(H25:H28)","v":1000}]
["Volumenstrom",null,"Einheit",null,null,{"$f":"E25","v":"L/sec"},{"$f":"E26","v":"m³/min"},{"$f":"E27","v":"m³/h"},{"$f":"E28","v":"cfm"}]
[1,null,"L/sec",null,"L/sec",{"$f":"IF(A29=1,B29,\"0\")","v":"0"},"-",{"$f":"F25*3600/1000","v":0},"-"]
[2,null,"m³/min",null,"m³/min","-",{"$f":"IF(A29=2,B29,\"0\")","v":"0"},{"$f":"G26*60","v":0},"-"]
[3,null,"m³/h",null,"m³/h","-","-",{"$f":"IF(A29=3,B29,\"0\")","v":1000},"-"]
[4,null,"cfm",null,"cfm","-","-",{"$f":"I28*60/35.31467","v":0},{"$f":"IF(A29=4,B29,\"0\")","v":"0"}]
[3,{"$f":"Input!A16","v":1000},{"$f":"VLOOKUP(A29,A25:C28,3)","v":"m³/h"}]
[]
[]
["DTP",null,"Einheit",null,null,"°C","°C","°C","°C","°C","°C"]
[1,"-25","-25°C",null,"-25°C",{"$f":"IF(A39=1,-25,\"0\")","v":-25}]
[2,"-40","-40°C",null,"-40°C",null,{"$f":"IF(A39=2,-40,\"0\")","v":"0"}]
[3,"-70","-70°C",null,"-70°C",null,null,{"$f":"IF(A39=3,-70,\"0\")","v":"0"}]
[4,"-13","-13°F",null,"-13°F",null,null,null,{"$f":"IF(A39=4,-25,\"0\")","v":"0"}]
[5,"-40","-40°F",null,"-40°F",null,null,null,null,{"$f":"IF(A39=5,-40,\"0\")","v":"0"}]
[6,"-94","-94°F",null,"-94°F",null,null,null,null,null,{"$f":"IF(A39=6,-70,\"0\")","v":"0"}]
[1,{"$f":"VLOOKUP(A39,A33:C38,2)","v":"-25"},{"$f":"VLOOKUP(A39,A33:C38,3)","v":"-25°C"},{"$f":"IF(A39>=4,\"°F\", \"°C\")","v":"°C"},null,{"$f":"SUM(F33:F38)","v":-25},0,0,0,0,0,{"$f":"SUM(F39:K39)","v":-25}]
[]
[]
[]
[null,null,null,null,null,null,null,"°C","rH  [%]"]
["Umgebungstemperatur",null,"Einheit",null,null,null,null,1.5,90]
[1,null,"°C",null,null,null,null,20,90]
[2,null,"°F",null,null,null,null,25,70]
[1,{"$f":"Input!B27","v":25},{"$f":"VLOOKUP(A47,A45:C46,3)","v":"°C"},{"$f":"IF(A47=1,Input!B27,((Input!B27-32)*5/9))","v":25},"°C",{"$f":"IF(A47=1,ROUNDUP(Input!B27*2,-1)/2,(ROUNDUP(((Input!B27-32)*5/9)*2,-1)/2))","v":25},"°C",30,50]
[null,null,null,null,null,null,null,35,37]
[null,null,null,null,null,null,null,40,25]
[null,null,null,null,null,null,null,null,{"$f":"VLOOKUP(F47,H44:I49,2)","v":70}]
["Austrittstemperatur"]
[]
[{"$f":"A14","v":1},{"$f":"IF('Be-Um-rechnung'!A14=1,'Be-Um-rechnung'!C5+Stoffdaten!AC2,1.8*('Be-Um-rechnung'!C5+Stoffdaten!AC2)+32)","v":48.02406645707498},{"$f":"C14","v":"°C"}]